bitfinex/quotes_BTCUSD_20240613
["timestamp","ask_amount","ask_price","bid_price","bid_amount"]
[1718281187460,1.41035624,67771.0,67770.0,0.00357]
[1718281187841,1.71648543,67771.0,67770.0,0.00357]
[1718281188193,1.63738543,67771.0,67770.0,0.00357]
[1718281188399,1.54953233,67771.0,67770.0,0.00357]
[1718281188982,1.64953233,67771.0,67770.0,0.00357]
[1718281189941,1.54782207,67771.0,67770.0,0.00357]
[1718281190323,1.75760954,67771.0,67770.0,0.00357]
[1718281190524,1.6302539,67771.0,67770.0,0.00357]
[1718281191145,1.74004137,67771.0,67770.0,0.00357]
[1718281191683,1.74004289,67771.0,67770.0,0.00357]
[1718281193022,1.63025542,67771.0,67770.0,0.00357]
[1718281193140,0.14592,67769.0,67768.0,0.00086]
[1718281193335,0.7193752,67769.0,67768.0,0.00086]
[1718281193537,1.19675831,67769.0,67768.0,0.00086]
[1718281194489,1.28467853,67769.0,67768.0,0.00086]
[1718281194738,1.29867639,67769.0,67768.0,0.00086]
[1718281194917,1.31267639,67769.0,67768.0,0.00086]
[1718281195152,1.45670921,67769.0,67768.0,0.00086]
[1718281195466,1.15057394,67769.0,67768.0,0.00086]
[1718281195662,1.36878263,67769.0,67768.0,0.00086]
[1718281196121,1.46878263,67769.0,67768.0,0.00086]
[1718281196368,1.45478263,67769.0,67768.0,0.00086]
[1718281196869,1.46878263,67769.0,67768.0,0.00086]
[1718281197584,1.46911624,67769.0,67768.0,0.00086]
[1718281197783,1.45511624,67769.0,67768.0,0.00086]
[1718281198211,1.46911624,67769.0,67768.0,0.00086]
[1718281198822,0.24592,67766.0,67765.0,1.00086]
[1718281198995,0.93348478,67766.0,67765.0,0.99880533]
[1718281199236,1.03348478,67766.0,67765.0,0.98116069]
[1718281199433,0.93348478,67766.0,67765.0,0.98116069]
[1718281199585,0.93349424,67766.0,67765.0,0.98116069]
[1718281199753,0.71939424,67766.0,67765.0,0.98116069]
[1718281199979,0.84002189,67766.0,67765.0,1.06266069]
[1718281200183,0.84740189,67766.0,67765.0,1.06266069]
[1718281200429,0.84002189,67766.0,67765.0,1.06266069]
[1718281200638,0.79710322,67766.0,67765.0,1.06266069]
[1718281200983,0.85480009,67766.0,67765.0,1.06266069]
[1718281201129,0.56446322,67766.0,67765.0,1.12146069]
[1718281201469,0.46446322,67766.0,67765.0,1.13408069]
[1718281201685,0.15831993,67766.0,67765.0,1.13408069]
[1718281201820,0.17231993,67766.0,67765.0,1.20518069]
[1718281202025,0.17231993,67766.0,67765.0,1.12146069]
[1718281202225,0.26242767,67766.0,67765.0,1.12146069]
[1718281202643,0.35608417,67766.0,67765.0,1.12146069]
[1718281202862,0.28498417,67766.0,67765.0,1.12146069]
[1718281203068,0.28598417,67766.0,67765.0,1.12146069]
[1718281203412,0.25297643,67766.0,67765.0,1.13408069]
[1718281203739,0.15931993,67766.0,67765.0,1.13408069]
[1718281204132,0.15931993,67766.0,67765.0,1.12146069]
[1718281204133,0.14531993,67766.0,67765.0,1.12146069]
[1718281204561,0.14531993,67766.0,67765.0,1.13408069]
[1718281204828,0.14531993,67766.0,67765.0,1.12146069]
[1718281205136,0.14531993,67766.0,67765.0,1.13408069]
[1718281205311,0.14431993,67766.0,67765.0,1.13408069]
[1718281206247,0.14831993,67766.0,67765.0,1.13408069]
[1718281206596,0.14931993,67766.0,67765.0,1.13608069]
[1718281206794,0.005,67766.0,67765.0,1.13608069]
[1718281208327,0.02305374,67766.0,67765.0,1.12346069]
[1718281208712,0.16737367,67766.0,67765.0,1.12346069]
[1718281209709,0.16337367,67766.0,67765.0,1.13056069]
[1718281209906,0.16237367,67766.0,67765.0,1.12856069]
[1718281210116,0.17637367,67766.0,67765.0,1.12856069]
[1718281210317,0.18837367,67766.0,67765.0,1.12856069]
[1718281210759,0.17437367,67766.0,67765.0,1.12856069]
[1718281211074,0.18837367,67766.0,67765.0,1.12856069]
[1718281211835,0.17637367,67766.0,67765.0,1.12856069]
[1718281212040,0.17637367,67766.0,67765.0,1.14118069]
[1718281212244,0.19037367,67766.0,67765.0,1.12856069]
[1718281212464,0.16237367,67766.0,67765.0,1.12856069]
[1718281212873,0.19037367,67766.0,67765.0,1.12856069]
[1718281213979,0.19037367,67766.0,67765.0,0.98116069]
[1718281213980,0.22041244,67766.0,67765.0,0.98116069]
[1718281214311,0.40559244,67766.0,67765.0,0.98116069]
[1718281214608,1.24968845,67766.0,67765.0,0.98116069]
[1718281215105,1.34479003,67766.0,67765.0,0.98116069]
[1718281215307,1.28478223,67766.0,67765.0,0.98116069]
[1718281215455,1.27740223,67766.0,67765.0,0.98116069]
[1718281216076,1.22740223,67766.0,67765.0,0.98116069]
[1718281216395,1.28435659,67766.0,67765.0,0.98116069]
[1718281216630,0.92346344,67766.0,67765.0,1.12526069]
[1718281216975,0.29037367,67766.0,67765.0,1.12526069]
[1718281217172,0.29037367,67766.0,67765.0,1.06336069]
[1718281217395,0.29037367,67766.0,67765.0,0.98116069]
[1718281217396,1.01143406,67766.0,67765.0,0.98116069]
[1718281217559,0.68446601,67766.0,67765.0,0.98116069]
[1718281217761,0.99767435,67766.0,67765.0,0.98116069]
[1718281218118,1.10766748,67766.0,67765.0,0.98116069]
[1718281218342,1.11504748,67766.0,67765.0,0.98116069]
[1718281218564,1.14199428,67766.0,67765.0,0.98116069]
[1718281218774,0.99771974,67766.0,67765.0,0.98116069]
[1718281218996,0.99436473,67766.0,67765.0,0.98116069]
[1718281219208,0.90637065,67766.0,67765.0,0.98116069]
[1718281219625,0.6737487,67766.0,67765.0,0.98116069]
[1718281219797,1.08986662,67766.0,67765.0,0.98116069]
[1718281219949,0.97987631,67766.0,67765.0,0.98116069]
[1718281220178,1.13157624,67766.0,67765.0,0.98116069]
[1718281220582,1.13157349,67766.0,67765.0,0.98116069]
[1718281220986,1.20457349,67766.0,67765.0,0.98116069]
[1718281221185,1.19719349,67766.0,67765.0,0.98116069]
[1718281221421,1.20457349,67766.0,67765.0,0.98116069]
[1718281221621,1.14719349,67766.0,67765.0,0.98116069]
[1718281221822,0.99747413,67766.0,67765.0,0.98116069]
[1718281222022,1.10746989,67766.0,67765.0,0.98116069]
[1718281222251,0.99747413,67766.0,67765.0,0.98116069]
[1718281222617,1.10747675,67766.0,67765.0,0.98116069]
[1718281223494,0.99748099,67766.0,67765.0,0.98116069]
[1718281223801,0.99768376,67766.0,67765.0,0.98116069]
[1718281223997,1.00506376,67766.0,67765.0,0.98116069]
[1718281224377,0.99768376,67766.0,67765.0,0.98116069]
[1718281224940,1.01200426,67766.0,67765.0,0.98116069]
[1718281225183,0.70587511,67766.0,67765.0,0.98116069]
[1718281225386,1.01199248,67766.0,67765.0,0.98116069]
[1718281225559,1.01199248,67766.0,67765.0,0.99378069]
[1718281225560,0.2908665,67766.0,67765.0,0.99378069]
[1718281225986,0.33488464,67766.0,67765.0,0.99378069]
[1718281226394,0.33488496,67766.0,67765.0,0.99378069]
[1718281226604,0.33976146,67766.0,67765.0,0.99378069]
[1718281226915,0.33976146,67766.0,67765.0,0.98116069]
[1718281227123,0.2908665,67766.0,67765.0,0.99378069]
[1718281227273,0.33488496,67766.0,67765.0,0.99378069]
[1718281227743,0.2908665,67766.0,67765.0,0.99378069]
[1718281227942,0.33488496,67766.0,67765.0,0.99378069]
[1718281228492,0.2908665,67766.0,67765.0,1.14148069]
[1718281228803,0.2908665,67766.0,67765.0,1.12886069]
[1718281229429,0.33488433,67766.0,67765.0,1.12886069]
[1718281230454,0.2908665,67766.0,67765.0,1.12886069]
[1718281230650,0.27326593,67766.0,67765.0,1.14148069]
[1718281232002,0.27326593,67766.0,67765.0,1.13148069]
[1718281232355,0.028946,67766.0,67765.0,1.14148069]
[1718281232557,0.028946,67766.0,67765.0,1.15148069]
[1718281232987,0.028946,67766.0,67765.0,1.26138909]
[1718281233673,0.000946,67777.0,67776.0,0.02262]
[1718281233898,0.000946,67777.0,67776.0,0.16172]
[1718281234676,0.000946,67777.0,67776.0,0.28208845]
[1718281235643,0.000946,67777.0,67776.0,0.27208845]
[1718281235958,0.000946,67777.0,67776.0,0.16172]
[1718281236561,0.001946,67777.0,67776.0,0.17772]
[1718281236692,0.002946,67777.0,67776.0,0.17772]
[1718281237105,0.002946,67777.0,67776.0,0.29835746]
[1718281237309,0.002946,67777.0,67776.0,0.17772]
[1718281237832,0.002946,67777.0,67776.0,0.29850464]
[1718281238236,0.002946,67777.0,67776.0,0.17772]
[1718281238842,0.002946,67777.0,67776.0,0.16772]
[1718281239010,0.002946,67777.0,67776.0,0.17772]
[1718281239568,0.002946,67777.0,67776.0,0.16772]
[1718281239920,0.002946,67777.0,67776.0,0.17772]
[1718281240322,0.002946,67777.0,67776.0,0.16772]
[1718281242579,0.002946,67777.0,67776.0,0.016]
[1718281242730,0.002946,67777.0,67776.0,0.1552]
[1718281242958,0.002946,67777.0,67776.0,0.16782]
[1718281243331,0.002946,67777.0,67776.0,0.15382]
[1718281243532,0.000946,67777.0,67776.0,0.15182]
[1718281243715,0.001946,67777.0,67776.0,0.16582]
[1718281243922,0.002946,67777.0,67776.0,0.16682]
[1718281249119,0.002946,67777.0,67776.0,0.0931]
[1718281249120,0.14726593,67777.0,67776.0,0.0931]
[1718281249325,0.14726593,67777.0,67776.0,0.015]
[1718281254363,0.14726593,67777.0,67776.0,0.02762]
[1718281255169,0.14726593,67777.0,67776.0,0.17292]
[1718281255980,0.14726593,67777.0,67776.0,0.0972]
[1718281256153,0.14726593,67777.0,67776.0,0.015]
[1718281257569,0.14726593,67777.0,67776.0,0.02762]
[1718281260213,0.002946,67777.0,67776.0,0.02762]
[1718281260395,0.002946,67777.0,67776.0,0.17092]
[1718281260657,0.002946,67777.0,67776.0,0.18092]
[1718281261006,0.002946,67777.0,67776.0,0.37385815]
[1718281261216,0.002946,67777.0,67776.0,0.77347808]
[1718281261408,0.059023,67798.0,67797.0,0.09572]
[1718281261610,0.14431993,67798.0,67797.0,0.09572]
[1718281262016,0.14431993,67798.0,67797.0,0.0831]
[1718281262217,0.14431993,67798.0,67787.0,0.07215996]
[1718281262218,0.14431993,67798.0,67793.0,0.0763]
[1718281262449,0.14431993,67798.0,67791.0,0.01262]
[1718281262619,0.14431993,67798.0,67797.0,0.01262]
[1718281262823,0.14431993,67798.0,67796.0,0.01262]
[1718281263206,0.14431993,67798.0,67797.0,0.01262]
[1718281263777,0.16031993,67798.0,67797.0,0.01262]
[1718281263991,0.16031993,67798.0,67793.0,0.002]
[1718281264209,0.14431993,67798.0,67792.0,0.01262]
[1718281264595,0.14431993,67798.0,67796.0,0.01362]
[1718281265803,0.14431993,67798.0,67796.0,0.01262]
[1718281265998,0.15831993,67798.0,67797.0,0.001]
[1718281266201,0.15831993,67798.0,67797.0,0.01462]
[1718281266457,0.15931993,67798.0,67797.0,0.01462]
[1718281266726,0.14431993,67798.0,67797.0,0.01262]
[1718281266966,0.15831993,67798.0,67797.0,0.01262]
[1718281267171,0.15931993,67798.0,67797.0,0.01262]
[1718281267483,0.14431993,67798.0,67797.0,0.01262]
[1718281268327,0.01772919,67805.0,67787.0,0.07215996]
[1718281268328,0.01772919,67805.0,67801.0,0.01262]
[1718281268523,0.0623,67810.0,67803.0,0.01262]
[1718281268524,0.14431993,67804.0,67803.0,0.01262]
[1718281269309,0.01262,67805.0,67804.0,0.01262]
[1718281269511,0.01262,67805.0,67804.0,0.15612]
[1718281269739,0.146946,67818.0,67812.0,0.01262]
[1718281269941,0.14431993,67817.0,67812.0,0.01262]
[1718281270346,0.20332593,67817.0,67808.0,0.01262]
[1718281270516,0.20332593,67817.0,67806.0,0.01262]
[1718281270720,0.20332593,67817.0,67808.0,0.01262]
[1718281270950,0.20332593,67817.0,67810.0,0.01262]
[1718281271120,0.1,67816.0,67812.0,0.001]
[1718281271342,0.14431993,67815.0,67812.0,0.001]
[1718281271751,0.14431993,67815.0,67808.0,0.001]
[1718281271965,0.14431993,67815.0,67804.0,0.15612]
[1718281272370,0.15169993,67815.0,67804.0,0.15612]
[1718281273014,0.15169993,67815.0,67808.0,0.01262]
[1718281273015,0.14431993,67815.0,67808.0,0.01262]
[1718281273212,0.14431993,67815.0,67811.0,0.01262]
[1718281273592,0.14431993,67815.0,67812.0,0.001]
[1718281274001,0.14431993,67815.0,67811.0,0.01262]
[1718281274446,0.14531993,67815.0,67811.0,0.01262]
[1718281274885,0.14431993,67815.0,67811.0,0.01262]
[1718281275090,0.15831993,67815.0,67814.0,0.01262]
[1718281275312,0.15931993,67815.0,67814.0,0.01262]
[1718281275524,0.15831993,67815.0,67814.0,0.01262]
[1718281276423,0.014,67815.0,67812.0,0.01262]
[1718281276673,0.01867024,67818.0,67814.0,0.01262]
[1718281276897,0.14431993,67817.0,67814.0,0.01262]
[1718281277107,0.14431993,67817.0,67809.0,0.00589803]
[1718281277108,0.1,67816.0,67815.0,0.01262]
[1718281277338,0.24431993,67816.0,67815.0,0.01262]
[1718281277548,0.24431993,67816.0,67815.0,0.09102]
[1718281278206,0.07767424,67818.0,67817.0,0.01262]
[1718281278207,0.05995,67818.0,67817.0,0.01262]
[1718281278412,0.000946,67818.0,67817.0,0.15282]
[1718281278624,0.000946,67818.0,67817.0,0.0769]
[1718281278786,0.000946,67818.0,67813.0,0.07592]
[1718281278787,0.014,67815.0,67813.0,0.07592]
[1718281278989,0.014,67815.0,67814.0,0.01262]
[1718281279376,0.014,67815.0,67813.0,0.0633]
[1718281279377,0.014,67815.0,67813.0,0.07592]
[1718281279583,0.014,67815.0,67814.0,0.01262]
[1718281280048,0.000946,67818.0,67816.0,0.01262]
[1718281280600,0.014946,67818.0,67817.0,0.001]
[1718281281026,0.000946,67818.0,67816.0,0.01262]
[1718281281475,0.014946,67818.0,67816.0,0.01362]
[1718281281895,0.000946,67818.0,67816.0,0.01262]
[1718281282107,0.000946,67818.0,67817.0,0.01262]
[1718281283411,0.014946,67818.0,67817.0,0.01362]
[1718281283630,0.015946,67818.0,67817.0,0.01362]
[1718281283836,0.014946,67818.0,67817.0,0.01362]
[1718281284350,0.015946,67818.0,67817.0,0.01462]
[1718281285527,0.015946,67818.0,67817.0,0.002]
[1718281286473,0.015946,67818.0,67817.0,0.01462]
[1718281286824,0.015946,67818.0,67817.0,0.09202]
[1718281287678,0.015946,67818.0,67817.0,0.10202]
[1718281287885,0.015946,67818.0,67817.0,0.16322]
[1718281290244,0.014946,67818.0,67817.0,0.28445591]
[1718281290463,0.000946,67818.0,67817.0,0.28345591]
[1718281290717,0.000946,67818.0,67817.0,0.28845591]
[1718281290952,0.014946,67818.0,67817.0,0.28445591]
[1718281291357,0.000946,67818.0,67817.0,0.29745591]
[1718281291794,0.001946,67818.0,67817.0,0.31145591]
[1718281295430,0.001946,67818.0,67817.0,0.55577584]
[1718281295633,0.001946,67818.0,67817.0,0.60964206]
[1718281295870,0.001946,67818.0,67817.0,0.76494206]
[1718281296029,0.001946,67818.0,67817.0,0.66494206]
[1718281296237,0.001946,67818.0,67817.0,0.76494206]
[1718281296432,0.001946,67818.0,67817.0,0.66494206]
[1718281299173,0.001946,67818.0,67817.0,0.76494206]
[1718281299372,0.001946,67818.0,67817.0,0.81494206]
[1718281299589,0.001946,67818.0,67817.0,1.04264206]
[1718281299966,0.001946,67818.0,67817.0,1.04269676]
[1718281300588,0.000946,67818.0,67817.0,1.02869676]
[1718281300991,0.001946,67818.0,67817.0,0.94169676]
[1718281301199,0.001946,67818.0,67817.0,1.02769676]
[1718281301630,0.001946,67818.0,67817.0,1.04169676]
[1718281303673,0.001946,67818.0,67817.0,1.14169676]
[1718281304039,0.001946,67818.0,67817.0,1.15947978]
[1718281304902,0.001946,67818.0,67817.0,1.05947978]
[1718281305684,0.001946,67818.0,67817.0,1.15947978]
[1718281306068,0.001946,67818.0,67817.0,1.05947978]
[1718281306274,0.001946,67818.0,67817.0,1.15947978]
[1718281306712,0.001946,67818.0,67817.0,1.05947498]
[1718281307459,0.001946,67818.0,67817.0,0.88177498]
[1718281307663,0.001946,67818.0,67817.0,1.05947498]
[1718281308400,0.001946,67818.0,67817.0,1.15947498]
[1718281308734,0.001946,67818.0,67817.0,1.18247498]
[1718281309976,0.001946,67818.0,67817.0,1.08247498]
[1718281310384,0.001946,67818.0,67817.0,1.18247498]
[1718281312198,0.001946,67818.0,67817.0,1.05947498]
[1718281312424,0.001946,67818.0,67817.0,1.05947234]
[1718281312629,0.001946,67818.0,67817.0,1.15947234]
[1718281314529,0.001946,67818.0,67817.0,1.05947234]
[1718281314943,0.001946,67818.0,67817.0,1.04168932]
[1718281315690,0.001946,67818.0,67817.0,1.04168738]
[1718281317072,0.001946,67818.0,67817.0,1.04169336]
[1718281317290,0.001946,67818.0,67817.0,1.14169336]
[1718281317495,0.001946,67818.0,67817.0,1.04169336]
[1718281318122,0.001946,67818.0,67817.0,1.0595564]
[1718281319030,0.001946,67818.0,67817.0,1.0095564]
[1718281320794,0.001946,67818.0,67817.0,0.8318564]
[1718281321007,0.001946,67818.0,67817.0,0.34363647]
[1718281321206,0.001946,67818.0,67817.0,0.54163647]
[1718281321565,0.001946,67818.0,67817.0,0.9251564]
[1718281321974,0.000946,67818.0,67817.0,0.8121564]
[1718281322118,0.000946,67818.0,67817.0,0.7981564]
[1718281322364,0.000946,67818.0,67817.0,0.8261564]
[1718281322770,0.000946,67818.0,67817.0,0.8981564]
[1718281322984,0.000946,67818.0,67817.0,0.7981564]
[1718281323187,0.000946,67818.0,67817.0,0.9121564]
[1718281323420,0.000946,67818.0,67817.0,0.8121564]
[1718281324489,0.000946,67818.0,67817.0,0.75829873]
[1718281324658,0.000946,67818.0,67817.0,0.70829873]
[1718281324854,0.000946,67818.0,67817.0,0.72929873]
[1718281325078,0.000946,67818.0,67817.0,0.38823569]
[1718281325281,0.000946,67818.0,67817.0,0.45523569]
[1718281325498,0.000946,67818.0,67817.0,0.52623569]
[1718281325810,0.000946,67818.0,67817.0,0.67623569]
[1718281326261,0.000946,67818.0,67817.0,0.83153569]
[1718281326953,0.000946,67818.0,67817.0,1.08223993]
[1718281327155,0.000946,67818.0,67817.0,1.22969493]
[1718281327717,0.000946,67818.0,67817.0,1.08223993]
[1718281327919,0.000946,67818.0,67817.0,1.06823993]
[1718281328124,0.000946,67818.0,67817.0,1.05423993]
[1718281328544,0.000946,67818.0,67817.0,1.06823993]
[1718281328874,0.000946,67818.0,67817.0,1.08223993]
[1718281330892,0.000946,67818.0,67817.0,1.18853993]
[1718281332415,0.000946,67818.0,67817.0,0.96123993]
[1718281332625,0.000946,67818.0,67817.0,1.18853993]
[1718281336191,0.000946,67818.0,67817.0,1.33599493]
[1718281337260,0.000946,67818.0,67817.0,1.63090593]
[1718281337498,0.00089325,67818.0,67817.0,1.63090593]
[1718281337964,0.009427,67834.0,67833.0,0.45462]
[1718281338166,0.009427,67834.0,67833.0,0.77623993]
[1718281338890,0.009427,67834.0,67833.0,0.67623993]
[1718281339095,0.009427,67834.0,67833.0,0.84839989]
[1718281339850,0.009427,67834.0,67833.0,0.86239989]
[1718281340293,0.009427,67834.0,67833.0,0.92853927]
[1718281341213,0.009427,67834.0,67833.0,0.84839989]
[1718281341416,0.009427,67834.0,67833.0,0.91453927]
[1718281341806,0.009427,67834.0,67833.0,0.92853927]
[1718281342006,0.009427,67834.0,67833.0,0.80809989]
[1718281342509,0.009427,67834.0,67833.0,0.89629935]
[1718281342664,0.009427,67834.0,67833.0,1.01855479]
[1718281343240,0.009427,67834.0,67833.0,0.93035533]
[1718281344239,0.009427,67834.0,67833.0,1.01045074]
[1718281344657,0.009427,67834.0,67833.0,1.0104523]
[1718281345842,0.009427,67834.0,67833.0,0.94435533]
[1718281346268,0.009427,67834.0,67833.0,0.88817751]
[1718281346471,0.009427,67834.0,67833.0,1.01043054]
[1718281347065,0.009427,67834.0,67833.0,0.81073054]
[1718281347268,0.009427,67834.0,67833.0,0.86212665]
[1718281347543,0.009427,67834.0,67833.0,0.76212665]
[1718281348476,0.009427,67834.0,67833.0,0.86212665]
[1718281349132,0.009427,67834.0,67833.0,0.76212665]
[1718281349552,0.009427,67834.0,67833.0,0.71212665]
[1718281349775,0.009427,67834.0,67833.0,0.24503299]
[1718281349983,0.148927,67834.0,67833.0,0.23503299]
[1718281350191,0.148927,67834.0,67833.0,0.16287303]
[1718281350408,0.148927,67834.0,67833.0,0.14887303]
[1718281350638,0.148927,67834.0,67833.0,0.02662]
[1718281350855,0.148927,67834.0,67833.0,0.04062]
[1718281351096,0.148927,67834.0,67833.0,0.028]
[1718281351545,0.148927,67834.0,67833.0,0.014]
[1718281351777,0.148927,67834.0,67833.0,0.02162]
[1718281351984,0.148927,67834.0,67833.0,0.03562]
[1718281352193,0.148927,67834.0,67833.0,0.023]
[1718281352438,0.29324693,67834.0,67833.0,0.009]
[1718281352655,0.29324693,67834.0,67819.0,0.4718]
[1718281352656,0.0637,67831.0,67819.0,0.4718]
[1718281352884,0.0813,67828.0,67820.0,0.12231542]
[1718281353102,0.0637,67824.0,67822.0,0.01262]
[1718281353323,0.0637,67824.0,67816.0,0.07215996]
[1718281353324,0.0637,67821.0,67816.0,0.08477996]
[1718281353553,0.0601,67819.0,67816.0,0.08477996]
[1718281353825,0.0601,67819.0,67818.0,0.01262]
[1718281355119,0.0631,67819.0,67818.0,0.01262]
[1718281355551,0.0611,67819.0,67818.0,0.01362]
[1718281357201,0.0711,67819.0,67818.0,0.01462]
[1718281357620,0.011,67819.0,67818.0,0.17336744]
[1718281358016,0.011,67819.0,67818.0,0.82837405]
[1718281358221,0.011,67819.0,67818.0,0.92837405]
[1718281358728,0.011,67819.0,67818.0,0.82837405]
[1718281358952,0.011,67819.0,67818.0,0.82394654]
[1718281359152,0.001,67819.0,67818.0,0.82294654]
[1718281359488,0.0658,67829.0,67828.0,0.01262]
[1718281359891,0.0658,67829.0,67828.0,0.02262]
[1718281360503,0.0658,67829.0,67828.0,0.01262]
[1718281361713,0.0668,67829.0,67828.0,0.02362]
[1718281361928,0.0758,67829.0,67828.0,0.01462]
[1718281362136,0.0758,67829.0,67828.0,0.02462]
[1718281362343,0.0758,67829.0,67828.0,0.14691372]
[1718281363218,0.0758,67829.0,67828.0,0.02462]
[1718281363915,0.0758,67829.0,67828.0,0.14691244]
[1718281364681,0.0668,67829.0,67828.0,0.14591244]
[1718281364888,0.0668,67829.0,67828.0,0.14491244]
[1718281365069,0.0668,67829.0,67828.0,0.14591244]
[1718281365262,0.0668,67829.0,67828.0,0.15991244]
[1718281365623,0.0668,67829.0,67828.0,0.03762]
[1718281372829,0.1453,67829.0,67828.0,0.025]
[1718281374001,0.30583063,67829.0,67828.0,0.025]
[1718281374233,0.31321063,67829.0,67828.0,0.025]
[1718281374844,0.29599993,67829.0,67828.0,0.014]
[1718281375074,0.1389,67827.0,67817.0,0.01262]
[1718281375275,0.14431993,67827.0,67817.0,0.01262]
[1718281375636,0.15169993,67827.0,67817.0,0.01262]
[1718281375839,0.1416,67821.0,67813.0,0.01262]
[1718281376133,0.0796,67819.0,67816.0,0.07215996]
[1718281376304,0.062,67818.0,67816.0,0.07215996]
[1718281377061,0.062,67818.0,67817.0,0.014]
[1718281377262,0.062,67818.0,67817.0,0.02662]
[1718281377470,0.062,67818.0,67817.0,0.014]
[1718281377695,0.062,67818.0,67817.0,0.02662]
[1718281377928,0.063,67818.0,67817.0,0.01262]
[1718281378321,0.062,67818.0,67817.0,0.01262]
[1718281379727,0.009427,67834.0,67830.0,0.01262]
[1718281379956,0.009427,67834.0,67828.0,0.01262]
[1718281379957,0.15374693,67834.0,67828.0,0.01262]
[1718281380194,0.1446,67833.0,67828.0,0.01262]
[1718281380390,0.1446,67833.0,67817.0,0.015]
[1718281380391,0.1446,67833.0,67829.0,0.01262]
[1718281380576,0.1446,67833.0,67832.0,0.01262]
[1718281381118,0.0622,67833.0,67832.0,0.01262]
[1718281381317,0.023427,67834.0,67832.0,0.01262]
[1718281381318,0.023427,67834.0,67833.0,0.01262]
[1718281381577,0.023427,67834.0,67833.0,0.14080324]
[1718281381791,0.023427,67834.0,67833.0,0.15080324]
[1718281381998,0.023427,67834.0,67833.0,0.13490703]
[1718281382507,0.009427,67834.0,67833.0,0.13490703]
[1718281383085,0.009427,67834.0,67833.0,0.01262]
[1718281383718,0.009427,67834.0,67833.0,0.02662]
[1718281384099,0.009427,67834.0,67833.0,0.014]
[1718281384706,0.010427,67834.0,67833.0,0.021]
[1718281385376,0.085927,67834.0,67833.0,0.021]
[1718281385585,0.149427,67834.0,67833.0,0.021]
[1718281386831,0.149427,67834.0,67833.0,0.03362]
[1718281387237,0.010427,67834.0,67833.0,0.03362]
[1718281388582,0.010427,67834.0,67833.0,0.15591133]
[1718281389729,0.010427,67834.0,67833.0,0.16591133]
[1718281390100,0.010427,67834.0,67833.0,0.15591133]
[1718281390884,0.010427,67834.0,67833.0,0.16591133]
[1718281392184,0.01014681,67834.0,67833.0,0.16591133]
[1718281392377,0.01014681,67834.0,67833.0,0.24851133]
[1718281392745,0.01014681,67834.0,67833.0,0.24849987]
[1718281393775,0.01014681,67834.0,67833.0,0.23449987]
[1718281393979,0.00914681,67834.0,67833.0,0.13489987]
[1718281394194,0.00914681,67834.0,67833.0,0.14889987]
[1718281394394,0.01014681,67834.0,67833.0,0.16289987]
[1718281394602,0.01014681,67834.0,67833.0,0.16290872]
[1718281394902,0.00914681,67834.0,67833.0,0.14890872]
[1718281395278,0.01014681,67834.0,67833.0,0.16290872]
[1718281395689,0.01014681,67834.0,67833.0,0.17290872]
[1718281396566,0.00914681,67834.0,67833.0,0.14890872]
[1718281397025,0.01014681,67834.0,67833.0,0.16290872]
[1718281398022,0.01014681,67834.0,67833.0,0.17290872]
[1718281398730,0.01014681,67834.0,67833.0,0.16290872]
[1718281400181,0.01014681,67834.0,67833.0,0.04062]
[1718281405141,0.01014681,67834.0,67833.0,0.028]
[1718281405355,0.14964681,67834.0,67833.0,0.028]
[1718281406311,0.14864681,67834.0,67833.0,0.014]
[1718281406471,0.14864681,67834.0,67830.0,0.98030069]
[1718281406667,0.14864681,67834.0,67833.0,0.013]
[1718281406902,0.14964681,67834.0,67833.0,0.027]
[1718281407273,0.14864681,67834.0,67833.0,0.014]
[1718281407862,0.14964681,67834.0,67833.0,0.022]
[1718281408784,0.14964681,67834.0,67833.0,0.008]
[1718281409210,0.14964681,67834.0,67833.0,0.022]
[1718281411461,0.01014681,67834.0,67833.0,0.03462]
[1718281412239,0.01014681,67834.0,67833.0,0.03548]
[1718281412371,0.01014681,67834.0,67833.0,0.02286]
[1718281414255,0.01014681,67834.0,67833.0,0.03548]
[1718281416221,0.01014681,67834.0,67833.0,0.02286]
[1718281416435,0.01014681,67834.0,67833.0,0.03548]
[1718281416654,0.09024681,67834.0,67833.0,0.02286]
[1718281417024,0.15624681,67834.0,67833.0,0.02286]
[1718281421137,0.15624681,67834.0,67833.0,0.03548]
[1718281423304,0.15624681,67834.0,67833.0,0.02286]
[1718281428002,0.30056674,67834.0,67833.0,0.02286]
[1718281428202,0.35203335,67834.0,67833.0,0.02286]
[1718281428411,0.67987126,67834.0,67833.0,0.02286]
[1718281428615,0.61374135,67834.0,67833.0,0.02286]
[1718281429296,0.6714737,67834.0,67833.0,0.00086]
[1718281429675,0.6804737,67834.0,67833.0,0.00286]
[1718281429875,0.6918537,67834.0,67833.0,0.00286]
[1718281430320,0.37867909,67834.0,67833.0,0.00286]
[1718281430523,0.38605909,67834.0,67833.0,0.00286]
[1718281431280,0.3198835,67834.0,67833.0,0.00286]
[1718281432273,0.4198835,67834.0,67833.0,0.00286]
[1718281433550,0.3198835,67834.0,67833.0,0.00286]
[1718281433711,0.4198835,67834.0,67833.0,0.00286]
[1718281433906,0.3198835,67834.0,67833.0,0.00286]
[1718281435126,0.36392974,67834.0,67833.0,0.00286]
[1718281437389,0.72964658,67834.0,67833.0,0.00286]
[1718281437596,0.923033,67834.0,67833.0,0.00286]
[1718281437820,0.75692065,67834.0,67833.0,0.00286]
[1718281438025,1.14507662,67834.0,67833.0,0.00286]
[1718281438371,1.31121276,67834.0,67833.0,0.00286]
[1718281438558,0.84092064,67834.0,67833.0,0.00286]
[1718281439981,0.906989,67834.0,67833.0,0.00286]
[1718281440733,0.899609,67834.0,67833.0,0.00286]
[1718281440937,0.6843775,67834.0,67833.0,0.00286]
[1718281441323,0.08815193,67834.0,67833.0,0.00286]
[1718281441531,0.02208357,67834.0,67833.0,0.00286]
[1718281441687,0.02208357,67834.0,67833.0,0.06816]
[1718281442120,0.02208357,67834.0,67833.0,0.08078]
[1718281442325,0.02208357,67834.0,67833.0,0.16408]
[1718281443163,0.00908357,67834.0,67833.0,0.16208]
[1718281443569,0.01008357,67834.0,67833.0,0.18008]
[1718281443803,0.01008357,67834.0,67833.0,0.17108]